bitfinex-derivatives/quotes_BTCF0:USTF0_20241120
["timestamp","ask_amount","ask_price","bid_price","bid_amount"]
[1732115907448,0.052849,94498.0,94494.0,0.3608]
[1732115907951,1.6,94500.0,94494.0,0.3608]
[1732115908248,0.05285,94496.0,94494.0,0.3608]
[1732115908746,0.05286,94478.0,94467.0,0.0585]
[1732115908934,0.248,94499.0,94461.0,0.3608]
[1732115908935,0.18435102,94486.0,94461.0,0.3608]
[1732115909134,0.18435102,94486.0,94445.0,0.06]
[1732115909135,0.052856,94486.0,94479.0,0.3608]
[1732115909532,0.052852,94493.0,94479.0,0.3608]
[1732115909736,1.6,94500.0,94492.0,0.18435102]
[1732115909934,1.6,94500.0,94494.0,0.3608]
[1732115910234,0.1,94500.0,94499.0,0.052848]
[1732115910458,0.3608,94532.0,94499.0,0.48435102]
[1732115910637,0.00158749,94546.0,94531.0,0.3608]
[1732115910638,0.052827,94538.0,94531.0,0.3608]
[1732115910830,0.00158749,94546.0,94531.0,0.3608]
[1732115910831,0.05283,94533.0,94531.0,0.3608]
[1732115911032,0.3608,94533.0,94522.0,0.3608]
[1732115911534,0.052831,94531.0,94522.0,0.3608]
[1732115911742,0.05165585,94538.0,94514.0,0.18435102]
[1732115911960,0.052832,94528.0,94521.0,0.3608]
[1732115912250,0.052826,94539.0,94522.0,0.18435102]
[1732115912439,0.02113837,94541.0,94534.0,0.413628]
[1732115912744,0.05324043,94546.0,94534.0,0.413628]
[1732115912933,0.05324043,94546.0,94541.0,0.052824]
[1732115912934,0.05388043,94546.0,94541.0,0.052824]
[1732115913132,0.0121889,94545.0,94534.0,0.413628]
[1732115913336,0.05324043,94546.0,94544.0,0.052823]
[1732115914848,0.05324043,94546.0,94542.0,0.3608]
[1732115915144,0.05324043,94546.0,94542.0,0.413624]
[1732115915847,0.05324043,94546.0,94534.0,0.3608]
[1732115916344,0.052828,94536.0,94522.0,0.3608]
[1732115916545,0.18435102,94538.0,94522.0,0.3608]
[1732115916846,0.052839,94516.0,94514.0,0.3608]
[1732115917052,0.052835,94523.0,94514.0,0.3608]
[1732115917243,0.0558,94553.0,94514.0,0.54515102]
[1732115917441,0.052828,94535.0,94533.0,0.3608]
[1732115917744,0.052838,94517.0,94514.0,0.3608]
[1732115918043,0.052839,94516.0,94514.0,0.3608]
[1732115918245,0.052833,94528.0,94513.0,0.3608]
[1732115918246,0.05284,94514.0,94513.0,0.3608]
[1732115918438,0.052845,94505.0,94502.0,0.36238717]
[1732115919349,0.18435102,94520.0,94502.0,0.36238717]
[1732115919350,0.18435102,94520.0,94502.0,0.41523417]
[1732115919644,0.05195783,94520.0,94512.0,0.3608]
[1732115919853,0.052827,94538.0,94512.0,0.3608]
[1732115920049,0.03199815,94533.0,94520.0,0.3608]
[1732115920247,0.052834,94524.0,94520.0,0.3608]
[1732115920441,0.052832,94529.0,94520.0,0.3608]
[1732115920642,0.01242821,94528.0,94523.0,0.052835]
[1732115920854,0.0525957,94534.0,94520.0,0.3608]
[1732115921040,0.01244812,94533.0,94520.0,0.3608]
[1732115921242,0.01244812,94532.0,94529.0,0.052832]
[1732115921544,0.01244812,94531.0,94530.0,0.052831]
[1732115921745,0.01244812,94531.0,94528.0,0.3608]
[1732115921746,0.052831,94530.0,94528.0,0.3608]
[1732115922137,0.01255415,94529.0,94528.0,0.3608]
[1732115922341,0.03941523,94539.0,94528.0,0.413632]
[1732115922548,0.03289198,94538.0,94528.0,0.413632]
[1732115922843,0.052831,94530.0,94528.0,0.413632]
[1732115923044,0.01263824,94529.0,94528.0,0.3608]
[1732115923243,0.052831,94530.0,94528.0,0.3608]
[1732115923448,0.03280126,94529.0,94528.0,0.3608]
[1732115923648,0.052836,94521.0,94520.0,0.3608]
[1732115923848,0.052843,94511.0,94509.0,0.3608]
[1732115924042,0.01245273,94510.0,94509.0,0.3608]
[1732115924548,0.03238739,94510.0,94509.0,0.3608]
[1732115925150,0.03238739,94510.0,94509.0,0.7216]
[1732115925449,0.01245273,94510.0,94509.0,0.774444]
[1732115925948,0.03258438,94510.0,94509.0,0.774444]
[1732115926254,0.01245273,94510.0,94509.0,0.413644]
[1732115926455,0.01630107,94521.0,94509.0,0.3608]
[1732115926758,0.052843,94510.0,94509.0,0.3608]
[1732115926947,0.09117312,94510.0,94509.0,0.3608]
[1732115927440,0.09117312,94510.0,94504.0,0.00240804]
[1732115927441,0.052846,94505.0,94504.0,0.00240804]
[1732115927643,0.052846,94505.0,94502.0,0.00158717]
[1732115927644,0.052847,94503.0,94502.0,0.00158717]
[1732115927949,0.09117712,94503.0,94502.0,0.00158717]
[1732115928546,0.03833012,94503.0,94502.0,0.007848]
[1732115928743,0.03833012,94503.0,94502.0,0.052848]
[1732115929048,0.03833012,94503.0,94500.0,0.3608]
[1732115929251,7.804e-05,94505.0,94500.0,0.3608]
[1732115929252,0.052848,94501.0,94500.0,0.3608]
[1732115929458,0.0163466,94502.0,94501.0,0.052848]
[1732115929644,0.25556,94543.0,94504.0,0.052846]
[1732115929957,0.052836,94523.0,94520.0,0.413638]
[1732115930159,0.03962064,94521.0,94520.0,0.413638]
[1732115930450,0.03962064,94521.0,94520.0,0.33701614]
[1732115930451,0.09245764,94521.0,94520.0,0.33701614]
[1732115930846,0.03962064,94521.0,94505.0,0.052846]
[1732115931041,0.05269524,94525.0,94500.0,0.41368212]
[1732115931042,0.052839,94518.0,94501.0,0.052848]
[1732115931253,0.052846,94506.0,94501.0,0.052848]
[1732115931458,0.01637948,94503.0,94501.0,0.052848]
[1732115931650,0.052848,94501.0,94500.0,0.3608]
[1732115931958,0.09246864,94501.0,94500.0,0.3608]
[1732115932146,0.052854,94491.0,94490.0,0.3608]
[1732115932448,0.09247464,94491.0,94490.0,0.3608]
[1732115932650,0.10885055,94491.0,94490.0,0.3608]
[1732115932852,0.052854,94491.0,94490.0,0.3608]
[1732115933046,0.052854,94491.0,94472.0,0.4126387]
[1732115933047,0.052857,94486.0,94478.0,0.052861]
[1732115933244,0.03800031,94486.0,94480.0,0.05286]
[1732115933545,0.39880031,94486.0,94472.0,0.3608]
[1732115933950,0.41517724,94486.0,94472.0,0.3608]
[1732115934155,0.41517724,94486.0,94482.0,0.3608]
[1732115934156,0.05437724,94486.0,94482.0,0.3608]
[1732115934462,0.03800031,94486.0,94485.0,0.05293309]
[1732115934843,0.01207354,94486.0,94485.0,0.05293309]
[1732115935044,0.03164866,94486.0,94485.0,0.05293309]
[1732115935241,0.01878129,94486.0,94485.0,0.73125309]
[1732115935448,0.01636919,94498.0,94496.0,0.052851]
[1732115935661,0.01637694,94504.0,94503.0,0.052847]
[1732115935847,0.00158823,94514.0,94497.0,0.3608]
[1732115935848,0.01637694,94507.0,94505.0,0.052846]
[1732115936146,0.01637694,94509.0,94507.0,0.052845]
[1732115936355,0.00158823,94514.0,94508.0,0.3608]
[1732115936550,0.00158823,94514.0,94513.0,0.052841]
[1732115936942,0.00158823,94514.0,94513.0,0.370241]
[1732115937255,0.052836,94524.0,94520.0,0.052837]
[1732115937449,0.052833,94529.0,94523.0,0.413636]
[1732115937641,1.5,94540.0,94523.0,0.413636]
[1732115937846,1.5,94540.0,94523.0,0.3608]
[1732115938061,0.052835,94524.0,94523.0,0.3608]
[1732115939149,0.3608,94539.0,94523.0,0.3608]
[1732115939349,0.05283,94534.0,94526.0,0.052834]
[1732115939845,1.5,94540.0,94526.0,0.052834]
[1732115940050,1.5,94540.0,94523.0,0.3608]
[1732115940051,0.05283,94533.0,94527.0,0.052833]
[1732115940251,1.5,94540.0,94531.0,0.3608]
[1732115940446,1.5,94540.0,94539.0,0.3608]
[1732115940447,1.552826,94540.0,94539.0,0.3608]
[1732115940646,0.02114554,94558.0,94539.0,0.3608]
[1732115940849,0.052824,94545.0,94539.0,0.3608]
[1732115941159,0.02114554,94558.0,94543.0,0.052825]
[1732115941557,0.05289225,94564.0,94539.0,0.3608]
[1732115941752,0.05289225,94564.0,94548.0,0.3608]
[1732115941949,1.5,94563.0,94548.0,0.3608]
[1732115942159,0.05289225,94564.0,94563.0,0.052813]
[1732115942359,0.05289225,94564.0,94548.0,0.3608]
[1732115942360,0.05289225,94564.0,94559.0,0.052816]
[1732115942654,0.05289225,94564.0,94557.0,0.3608]
[1732115942858,0.05289225,94564.0,94563.0,0.052813]
[1732115943456,0.05949575,94564.0,94562.0,0.28090515]
[1732115943652,0.0066035,94563.0,94562.0,0.33371915]
[1732115943860,0.0066035,94563.0,94562.0,0.052814]
[1732115943861,0.00660337,94563.0,94562.0,0.052814]
[1732115944660,0.00660337,94563.0,94558.0,0.4196]
[1732115944956,0.052815,94560.0,94558.0,0.3608]
[1732115945166,0.00660332,94559.0,94558.0,0.3608]
[1732115945460,0.02702517,94559.0,94558.0,0.33702661]
[1732115945766,0.052819,94554.0,94543.0,0.3608]
[1732115945961,1.5,94560.0,94543.0,0.3608]
[1732115945962,0.02699562,94553.0,94551.0,0.3608]
[1732115946255,0.02699562,94552.0,94551.0,0.3608]
[1732115946855,0.02699562,94552.0,94551.0,0.413621]
[1732115947052,0.02699562,94552.0,94551.0,0.3608]
[1732115947251,0.07981562,94552.0,94551.0,0.3608]
[1732115947452,0.14316864,94552.0,94551.0,0.3608]
[1732115948055,0.09034864,94552.0,94541.0,0.052826]
[1732115948268,0.09034864,94552.0,94518.0,0.110939]
[1732115948269,0.3608,94542.0,94510.0,0.3608]
[1732115948565,0.3608,94542.0,94499.0,0.3608]
[1732115948566,0.3608,94529.0,94499.0,0.3608]
[1732115948866,0.052839,94518.0,94507.0,0.3608]
[1732115949062,0.09239033,94517.0,94507.0,0.3608]
[1732115949365,0.03955033,94516.0,94515.0,0.052841]
[1732115949550,0.03294604,94516.0,94515.0,0.3608]
[1732115949755,0.03955294,94516.0,94513.0,0.052842]
[1732115949958,0.03955294,94516.0,94507.0,0.3608]
[1732115949959,0.03294604,94515.0,94507.0,0.3608]
[1732115950269,0.28090515,94510.0,94504.0,0.3488933]
[1732115950559,0.052857,94486.0,94474.0,0.052863]
[1732115950865,0.052857,94486.0,94468.0,0.93876738]
[1732115950866,0.80563697,94486.0,94468.0,0.56736738]
[1732115951067,1.12315697,94486.0,94468.0,0.56736738]
[1732115951263,1.091977,94486.0,94468.0,0.56736738]
[1732115951456,1.1216235,94486.0,94468.0,0.56736738]
[1732115951965,0.4000235,94486.0,94468.0,0.56736738]
[1732115952153,0.4000235,94486.0,94470.0,0.50524656]
[1732115952356,0.052865,94471.0,94470.0,0.50524656]
[1732115952659,0.774465,94471.0,94470.0,0.50432656]
[1732115952861,2.231225,94471.0,94470.0,0.50432656]
[1732115953159,2.24210306,94471.0,94470.0,0.50432656]
[1732115953351,2.231225,94471.0,94470.0,0.50432656]
[1732115953554,2.2419927,94471.0,94470.0,0.50432656]
[1732115953754,2.531225,94471.0,94470.0,0.50432656]
[1732115954055,0.052871,94469.0,94468.0,0.56621846]
[1732115954255,0.052885,94445.0,94442.0,0.00092]
[1732115954458,0.052885,94445.0,94428.0,0.05077931]
[1732115954863,0.3608,94451.0,94428.0,0.05077931]
[1732115955070,0.3608,94455.0,94453.0,0.05288]
[1732115955865,0.3608,94465.0,94464.0,0.052874]
[1732115956169,7.609e-05,94469.0,94468.0,0.052872]
[1732115956867,7.609e-05,94469.0,94464.0,0.3608]
[1732115957069,7.609e-05,94469.0,94461.0,0.052876]
[1732115957271,7.609e-05,94469.0,94468.0,0.052872]
[1732115957469,7.609e-05,94469.0,94468.0,0.413672]
[1732115959458,0.00158885,94478.0,94477.0,0.052867]
[1732115959660,0.00158885,94478.0,94477.0,0.413667]
[1732115960268,0.02113167,94502.0,94495.0,0.052857]
[1732115960567,0.052854,94501.0,94489.0,0.3608]
[1732115960772,0.02113167,94502.0,94489.0,0.3608]
[1732115960971,0.02113167,94502.0,94477.0,0.3608]
[1732115961176,0.3608,94490.0,94477.0,0.3608]
[1732115961470,0.02113167,94502.0,94477.0,0.3608]
[1732115961670,0.02113167,94502.0,94496.0,0.052856]
[1732115961871,0.02113167,94502.0,94488.0,0.05286]
[1732115961872,0.052854,94500.0,94488.0,0.05286]
[1732115962168,0.02113167,94502.0,94493.0,0.052858]
[1732115962575,0.02113167,94502.0,94485.0,0.3608]
[1732115962770,0.41144011,94514.0,94485.0,0.3608]
[1732115962771,0.05064011,94514.0,94508.0,0.052849]
[1732115962969,0.0544332,94517.0,94494.0,0.3608]
[1732115962970,0.0015882,94517.0,94502.0,0.3608]
[1732115963270,0.05425786,94517.0,94510.0,0.052848]
[1732115963481,0.0015882,94517.0,94502.0,0.3608]
[1732115963782,0.0015882,94517.0,94516.0,0.052845]
[1732115964174,0.00062,94526.0,94525.0,0.05284]
[1732115964770,0.05126818,94531.0,94525.0,0.05284]
[1732115964771,0.02114754,94550.0,94527.0,0.052839]
[1732115964964,0.02114754,94550.0,94540.0,0.052832]
[1732115965264,0.02114754,94550.0,94527.0,0.052839]
[1732115965265,0.052828,94546.0,94527.0,0.052839]
[1732115965464,0.052828,94546.0,94536.0,0.052833]
[1732115965670,0.052828,94546.0,94525.0,0.33377725]
[1732115965869,0.3608,94546.0,94532.0,0.413636]
[1732115966080,0.052833,94538.0,94532.0,0.3608]
[1732115966274,0.3608,94534.0,94524.0,0.3608]
[1732115966476,0.052844,94519.0,94513.0,0.3608]
[1732115966775,0.052846,94514.0,94501.0,0.3608]
[1732115966963,0.3608,94531.0,94501.0,0.3608]
[1732115967166,0.052844,94518.0,94505.0,0.112451]
[1732115967367,0.052849,94509.0,94505.0,0.0596]
[1732115967566,0.3608,94531.0,94505.0,0.0596]
[1732115967567,0.052839,94528.0,94505.0,0.0596]
[1732115967763,0.052847,94513.0,94505.0,0.112451]
[1732115967972,0.3608,94516.0,94505.0,0.112451]
[1732115968168,0.3608,94531.0,94505.0,0.0596]
[1732115968374,0.41365904,94531.0,94505.0,0.0596]
[1732115968585,0.052844,94518.0,94505.0,0.0596]
[1732115968786,0.05285904,94531.0,94514.0,0.052846]
[1732115968982,0.052845,94517.0,94508.0,0.052849]
[1732115969289,0.052845,94517.0,94510.0,0.052848]
[1732115969583,0.3608,94519.0,94512.0,0.052847]
[1732115969786,0.3608,94519.0,94505.0,0.0596]
[1732115969988,0.05285,94507.0,94505.0,0.0596]
[1732115970283,0.052852,94505.0,94501.0,0.3608]
[1732115970487,0.3608,94511.0,94501.0,0.3608]
[1732115970673,0.4138821,94511.0,94498.0,0.0597]
[1732115970873,0.3608,94503.0,94491.0,0.28090515]
[1732115971074,0.3608,94503.0,94486.0,0.3608]
[1732115971380,0.05286,94490.0,94464.0,0.3608]
[1732115971577,0.05286,94490.0,94465.0,0.052873]
[1732115971777,0.37034,94490.0,94463.0,0.05097603]
[1732115971980,1.87034,94490.0,94470.0,0.05287]
[1732115972184,1.87034,94490.0,94489.0,5.259e-05]
[1732115972573,2.23114,94490.0,94489.0,5.259e-05]
[1732115972974,2.28337423,94490.0,94489.0,5.259e-05]
[1732115973174,2.28345032,94490.0,94489.0,5.259e-05]
[1732115973478,1.91311032,94490.0,94459.0,0.3608]
[1732115973684,1.91311032,94490.0,94474.0,0.052868]
[1732115973880,0.05286,94489.0,94474.0,0.052868]
[1732115974079,0.3608,94475.0,94474.0,0.052868]
[1732115974474,0.052867,94477.0,94474.0,0.052868]
[1732115974678,0.3608,94475.0,94474.0,0.052868]
[1732115975475,0.3608,94475.0,94459.0,0.41213113]
[1732115975681,0.052869,94473.0,94469.0,0.052871]
[1732115975992,0.052876,94461.0,94459.0,0.3608]
[1732115976181,0.05287,94471.0,94462.0,0.052875]
[1732115976384,0.3608,94466.0,94464.0,0.052874]
[1732115976584,0.05285705,94475.0,94474.0,0.052869]
[1732115976803,0.3608,94489.0,94474.0,0.052869]
[1732115976985,0.0006361,94490.0,94477.0,0.3608]
[1732115976986,7.609e-05,94490.0,94477.0,0.3608]
[1732115977188,7.609e-05,94490.0,94485.0,0.052862]
[1732115977495,0.05085706,94490.0,94477.0,0.3608]
[1732115977791,0.052861,94488.0,94482.0,0.052864]
[1732115978098,0.052861,94488.0,94483.0,0.052863]
[1732115978292,0.052861,94488.0,94484.0,0.052863]
[1732115978697,0.05085706,94490.0,94489.0,0.05286]
[1732115978895,7.609e-05,94490.0,94489.0,0.05286]
[1732115979194,7.609e-05,94490.0,94477.0,0.46513308]
[1732115979195,0.052861,94488.0,94483.0,0.052863]
[1732115979388,0.052861,94488.0,94477.0,0.41226608]
[1732115979588,0.052861,94488.0,94484.0,0.052863]
[1732115979898,7.609e-05,94490.0,94488.0,0.052861]
[1732115980289,0.052848,94511.0,94507.0,0.05285]
[1732115980488,0.052848,94511.0,94478.0,0.052866]
[1732115980489,0.05241665,94514.0,94504.0,0.3608]
[1732115980694,0.052846,94514.0,94509.0,0.052849]
[1732115981298,5.259e-05,94513.0,94509.0,0.052849]
[1732115982792,5.259e-05,94513.0,94512.0,0.052847]
[1732115983202,0.00158782,94526.0,94525.0,0.05284]
[1732115984298,1.5,94549.0,94523.0,0.3608]
[1732115984503,0.01239316,94548.0,94547.0,0.052827]
[1732115984702,1.50056001,94549.0,94547.0,0.052827]
[1732115984703,1.5,94549.0,94547.0,0.052827]
[1732115985000,0.02174206,94549.0,94534.0,0.3608]
[1732115985205,0.02174206,94549.0,94535.0,0.052834]
[1732115985403,0.12694158,94549.0,94534.0,0.3608]
[1732115985701,0.12694158,94549.0,94543.0,0.05283]
[1732115985904,0.07411458,94549.0,94529.0,0.28090515]
[1732115986103,0.3608,94544.0,94526.0,0.3608]
[1732115986294,0.01222013,94543.0,94518.0,0.052844]
[1732115986492,0.3608,94536.0,94512.0,0.3608]
[1732115986804,0.052845,94517.0,94512.0,0.3608]
[1732115987301,0.3608,94528.0,94512.0,0.3608]
[1732115987501,0.052845,94516.0,94512.0,0.41351307]
[1732115987706,0.052845,94516.0,94512.0,0.05271307]
[1732115988203,0.052835,94534.0,94515.0,0.36088593]
[1732115988388,0.052825,94553.0,94531.0,0.052836]
[1732115988389,0.052828,94547.0,94531.0,0.052836]
[1732115988594,0.01228017,94546.0,94523.0,0.3608]
[1732115988793,0.052834,94536.0,94523.0,0.3608]
[1732115989092,1.5,94545.0,94523.0,0.3608]
[1732115989298,0.052838,94528.0,94523.0,0.413641]
[1732115989497,0.052836,94533.0,94523.0,0.3608]
[1732115989795,1.5,94545.0,94523.0,0.3608]
[1732115989796,0.02114205,94537.0,94523.0,0.3608]
[1732115990111,0.052845,94516.0,94515.0,8.593e-05]
[1732115990290,0.052845,94516.0,94515.0,9.3e-07]
[1732115990291,0.73640768,94516.0,94515.0,9.3e-07]
[1732115990494,0.05285,94507.0,94506.0,0.0014495]
[1732115990797,0.05285,94507.0,94483.0,0.4215]
[1732115990798,0.052863,94484.0,94483.0,0.3608]
[1732115991107,0.052863,94484.0,94478.0,0.0552]
[1732115991108,0.3608,94497.0,94478.0,0.0552]
[1732115991293,0.052869,94473.0,94464.0,0.0544617]
[1732115991493,0.3608,94485.0,94464.0,0.0544617]
[1732115991494,8.593e-05,94472.0,94464.0,0.0015877]
[1732115991698,0.052873,94466.0,94464.0,0.0015877]
[1732115991897,8.593e-05,94472.0,94464.0,0.0015877]
[1732115992098,0.052872,94469.0,94464.0,0.0544617]
[1732115992405,8.593e-05,94472.0,94464.0,0.0544617]
[1732115992406,0.052872,94468.0,94464.0,0.0544617]
[1732115993202,8.593e-05,94472.0,94470.0,0.052871]
[1732115993403,8.593e-05,94472.0,94471.0,0.28090515]
[1732115993824,0.35544,94520.0,94471.0,0.59846515]
[1732115993995,0.05286,94489.0,94485.0,0.052862]
[1732115994195,0.413646,94514.0,94484.0,0.3608]
[1732115994196,0.052862,94485.0,94484.0,0.3608]
[1732115994395,0.3608,94486.0,94472.0,0.05287]
[1732115994605,0.0521198,94496.0,94453.0,0.3608]
[1732115994606,0.052869,94473.0,94453.0,0.3608]
[1732115994999,0.3608,94490.0,94460.0,0.28090515]
[1732115995204,0.41366,94490.0,94464.0,0.10728232]
[1732115995504,0.052871,94470.0,94465.0,0.052873]
[1732115995694,0.3608,94490.0,94464.0,0.0015877]
[1732115996005,0.052863,94484.0,94469.0,0.3608]
[1732115996505,0.3608,94490.0,94469.0,0.3608]
[1732115996710,0.3608,94490.0,94475.0,0.052868]
[1732115996711,0.052864,94483.0,94475.0,0.052868]
[1732115996904,0.3608,94479.0,94475.0,0.052868]
[1732115997201,0.052865,94481.0,94466.0,0.052873]
[1732115997407,0.3608,94477.0,94464.0,0.0015877]
[1732115997702,0.052871,94470.0,94464.0,0.0015877]
[1732115997906,0.3608,94477.0,94464.0,0.0015877]
[1732115998205,0.052872,94469.0,94464.0,0.0015877]
[1732115998412,1.5,94482.0,94464.0,0.0015877]
[1732115998413,0.052874,94465.0,94464.0,0.0015877]
[1732115999821,0.3608,94472.0,94464.0,0.0015877]
[1732115999997,0.052873,94466.0,94464.0,0.0015877]
[1732116000604,0.052873,94466.0,94450.0,0.36089565]
[1732116000605,0.31756,94465.0,94450.0,9.565e-05]
[1732116000803,0.413681,94451.0,94450.0,9.565e-05]
[1732116001108,0.052881,94451.0,94450.0,9.565e-05]
[1732116001997,0.37060693,94451.0,94450.0,9.72e-06]
[1732116002204,1.55296693,94451.0,94450.0,9.72e-06]
[1732116002608,0.052898,94422.0,94420.0,0.3608]
[1732116002897,0.052898,94422.0,94404.0,0.0106]
[1732116002898,0.052903,94413.0,94407.0,0.41355779]
[1732116003208,0.3608,94431.0,94412.0,0.3608]
[1732116003411,0.3608,94431.0,94404.0,0.05148063]
[1732116003412,0.052902,94415.0,94404.0,0.05148063]
[1732116003608,0.052902,94415.0,94401.0,0.05998858]
[1732116003609,0.052903,94413.0,94401.0,0.11289758]
[1732116003905,0.052903,94413.0,94402.0,0.052908]
[1732116004103,0.052903,94413.0,94403.0,0.052908]
[1732116004304,9.565e-05,94414.0,94405.0,0.3608]
[1732116004503,0.05299765,94414.0,94405.0,0.3608]
[1732116004701,0.41379765,94414.0,94405.0,0.3608]
[1732116005208,0.052906,94407.0,94405.0,0.3608]
[1732116005419,0.052909,94401.0,94400.0,0.1]
[1732116006199,0.36089565,94414.0,94400.0,0.1]
[1732116006200,0.3608,94406.0,94400.0,0.1]
[1732116006404,9.565e-05,94414.0,94401.0,0.3608]
[1732116006618,9.565e-05,94414.0,94413.0,0.052903]
[1732116006806,9.565e-05,94414.0,94409.0,0.3608]
[1732116007213,9.565e-05,94414.0,94412.0,0.052903]
[1732116007716,0.05231186,94429.0,94412.0,0.052903]
[1732116007717,0.05231186,94429.0,94428.0,0.052894]
[1732116007905,0.05231186,94429.0,94428.0,0.413694]
[1732116008212,0.3608,94459.0,94428.0,0.413694]
[1732116008411,0.052888,94439.0,94429.0,0.052894]
[1732116008712,0.052888,94439.0,94428.0,0.3608]
[1732116008713,0.41395309,94459.0,94428.0,0.3608]
[1732116008904,0.28090515,94452.0,94428.0,0.3608]
[1732116009104,0.28090515,94452.0,94413.0,0.4164]
[1732116009105,0.3608,94430.0,94413.0,0.41732]
[1732116009311,0.3608,94424.0,94413.0,0.4164]
[1732116009519,0.052898,94421.0,94413.0,0.4164]
[1732116009708,0.02115608,94449.0,94423.0,0.052897]
[1732116009709,0.3608,94444.0,94423.0,0.052897]
[1732116009906,0.00060001,94441.0,94428.0,0.052894]
[1732116010109,0.00060001,94441.0,94423.0,0.3608]
[1732116010110,0.052891,94434.0,94425.0,0.052896]
[1732116010321,0.052891,94434.0,94423.0,0.3608]
[1732116010506,0.052891,94434.0,94433.0,0.3608]
[1732116010811,0.05283633,94447.0,94435.0,0.05289]
[1732116010812,0.052887,94442.0,94435.0,0.05289]
[1732116011024,0.02115608,94449.0,94432.0,0.3608]
[1732116011202,0.02115608,94449.0,94413.0,0.0556]
[1732116011203,0.052891,94434.0,94413.0,0.0556]
[1732116011516,0.052899,94420.0,94413.0,0.0556]
[1732116011716,0.3608,94426.0,94413.0,0.0556]
[1732116011908,0.052902,94415.0,94413.0,0.0556]
[1732116012513,0.052898,94422.0,94413.0,0.0556]
[1732116012724,0.3608,94436.0,94413.0,0.0556]
[1732116013020,0.3608,94436.0,94405.0,0.3608]
[1732116013021,0.052907,94406.0,94405.0,0.3608]
[1732116013312,0.052909,94401.0,94400.0,0.1]
[1732116013515,0.052896,94425.0,94400.0,0.1]
[1732116013516,1.5,94424.0,94400.0,0.1]
[1732116013705,0.052897,94423.0,94400.0,0.1]
[1732116013908,0.052909,94402.0,94400.0,0.1]
[1732116014720,0.3608,94401.0,94400.0,0.1]
[1732116016722,0.41161342,94401.0,94400.0,0.1]
[1732116017627,0.41161342,94401.0,94385.0,0.00013651]
[1732116017628,0.052918,94386.0,94385.0,5.1e-07]
[1732116017811,0.052918,94386.0,94346.0,0.0106]
[1732116017812,0.052923,94377.0,94346.0,0.0106]
[1732116018018,0.052939,94348.0,94341.0,0.052943]
[1732116018227,0.05294,94346.0,94339.0,0.1136]
[1732116018417,0.052932,94361.0,94339.0,0.1136]
[1732116018726,0.64170515,94363.0,94339.0,0.1136]
[1732116018727,0.052943,94341.0,94339.0,0.10930097]
[1732116019020,0.052943,94341.0,94303.0,0.4013]
[1732116019021,0.3608,94341.0,94331.0,0.052949]
[1732116019223,0.052948,94332.0,94326.0,0.052951]
[1732116019424,0.052949,94331.0,94326.0,0.052951]
[1732116019718,0.052951,94327.0,94325.0,0.05368363]
[1732116019919,0.052951,94327.0,94325.0,0.00159016]
[1732116020124,0.3608,94347.0,94325.0,0.00159016]
[1732116020425,0.3608,94347.0,94331.0,0.3608]
[1732116020426,0.052944,94340.0,94331.0,0.3608]
[1732116020816,1.5,94346.0,94331.0,0.3608]
[1732116021016,1.5,94346.0,94325.0,0.00159016]
[1732116021328,0.052948,94332.0,94325.0,0.00159016]
[1732116021629,1.5,94346.0,94325.0,0.00159016]
[1732116021923,0.052951,94326.0,94325.0,0.00159016]
[1732116022422,0.052955,94319.0,94318.0,9.654e-05]
[1732116022826,0.413755,94319.0,94318.0,9.654e-05]
[1732116023820,1.913755,94319.0,94318.0,9.654e-05]
[1732116024222,1.913755,94319.0,94318.0,5.4e-07]
[1732116024223,2.531835,94319.0,94318.0,5.4e-07]
[1732116024525,0.052966,94301.0,94300.0,0.1]
[1732116024716,1.05547115,94301.0,94300.0,0.1]
[1732116024921,1.01279115,94301.0,94247.0,0.64170515]
[1732116025116,1.01279115,94301.0,94250.0,0.1175]
[1732116025117,0.052986,94265.0,94250.0,0.1175]
[1732116025319,0.052986,94265.0,94258.0,0.052989]
[1732116025622,0.052986,94265.0,94255.0,0.05203238]
[1732116025623,9.95e-05,94264.0,94260.0,0.052988]
[1732116025817,9.95e-05,94264.0,94262.0,0.052987]
[1732116026024,9.95e-05,94264.0,94263.0,0.6806312]
[1732116026720,0.00159175,94295.0,94263.0,0.9806312]
[1732116027022,0.00159175,94295.0,94280.0,0.3608]
[1732116027424,0.052968,94298.0,94288.0,0.3608]
[1732116027628,0.05280574,94300.0,94285.0,0.0599]
[1732116027933,0.3608,94310.0,94285.0,0.0599]
[1732116027934,0.052968,94297.0,94285.0,0.0599]
[1732116028231,0.3608,94296.0,94285.0,0.0599]
[1732116028440,0.00010587,94299.0,94287.0,0.052973]
[1732116028619,0.052968,94297.0,94287.0,0.052973]
[1732116028822,0.052969,94296.0,94285.0,0.0599]
[1732116029031,0.3608,94298.0,94285.0,0.0599]
[1732116029428,0.052972,94291.0,94285.0,0.0599]
[1732116029922,0.00010587,94299.0,94287.0,0.3608]
[1732116030123,0.00010587,94299.0,94296.0,0.052968]
[1732116030328,0.00010587,94299.0,94287.0,0.3608]
[1732116030329,0.052968,94297.0,94287.0,0.3608]
[1732116030534,0.00010587,94299.0,94287.0,0.3608]
[1732116030730,0.00010587,94299.0,94288.0,0.052972]
[1732116030926,0.00010587,94299.0,94291.0,0.052971]
[1732116031230,0.05295,94330.0,94307.0,0.052962]
[1732116031424,0.052952,94325.0,94304.0,0.3608]
[1732116031627,0.052957,94316.0,94304.0,0.3608]
[1732116032028,0.052957,94316.0,94306.0,0.052962]
[1732116032221,0.052957,94316.0,94304.0,0.3608]
[1732116032222,1.5,94336.0,94304.0,0.3608]
[1732116032421,0.28090515,94326.0,94304.0,0.3608]
[1732116032635,0.052957,94317.0,94304.0,0.3608]
[1732116032826,0.05296,94312.0,94304.0,0.3608]
[1732116033132,0.052958,94315.0,94304.0,0.3608]
[1732116033337,0.052954,94322.0,94304.0,0.3608]
[1732116033524,0.07499471,94335.0,94304.0,0.3608]
[1732116033832,0.3608,94342.0,94318.0,0.3608]
[1732116034136,0.05511306,94346.0,94326.0,0.3608]